fUST/lending_fUST_20250717
["ID","MTS","AMOUNT","RATE_DAILY","PERIOD"]
[372771822,1752756647826,-151.0,0.00019,2]
[372771823,1752756647835,-176.94284,0.00019,2]
[372771824,1752756647846,-167.617613,0.00019,2]
[372771825,1752756647856,-176.94284,0.00019,2]
[372771826,1752756647866,-167.617613,0.00019,2]
[372771827,1752756647875,-1304.46,0.00019,2]
[372771828,1752756647885,-460.0,0.0001906,2]
[372771829,1752756647895,-561.94,0.0001906,2]
[372771830,1752756647905,-774.95,0.0001906,2]
[372771831,1752756647915,-655.24,0.0001906,2]
[372771832,1752756647929,-460.0,0.0001906,2]
[372771833,1752756647940,-460.0,0.0001906,2]
[372771834,1752756647950,-460.0,0.0001906,2]
[372771835,1752756647960,-460.0,0.0001906,2]
[372771836,1752756647969,-460.0,0.0001906,2]
[372771837,1752756647979,-460.0,0.0001906,2]
[372771838,1752756647989,-460.0,0.0001906,2]
[372771839,1752756647999,-460.0,0.0001906,2]
[372771840,1752756648009,-741.73,0.0001906,2]
[372771841,1752756648019,-3004.49213334,0.00019088,2]
[372771842,1752756648031,-179.9640072,0.00019097,2]
[372771843,1752756648042,-9584.24968807,0.00019141,2]
[372771844,1752756648054,-2525.75,0.00019166,2]
[372771845,1752756648067,-493.33,0.00019166,2]
[372771846,1752756648084,-1621.5,0.00019166,2]
[372771847,1752756648095,-5013.37,0.00019166,2]
[372771848,1752756648106,-1351.68,0.00019166,2]
[372771849,1752756648123,-1091.649193,0.00019167,2]
[372771850,1752756648133,-1091.649193,0.00019167,2]
[372771851,1752756648144,-151.0,0.00019167,2]
[372771852,1752756648154,-500.0,0.00019178,2]
[372771853,1752756648164,-518.56083965,0.00019178,2]
[372771854,1752756648174,-151.0,0.00019178,2]
[372771855,1752756648183,-151.0,0.00019178,2]
[372771856,1752756648193,-736.644307,0.00019178,2]
[372771857,1752756648203,-666.0,0.00019178,2]
[372771858,1752756648213,-5025.71670219,0.00019221,2]
[372771859,1752756648222,-736.1,0.00019231,2]
[372771860,1752756648232,-192.29,0.00019231,2]
[372771861,1752756648243,-1634.33,0.00019231,2]
[372771862,1752756648252,-3795.01,0.00019231,2]
[372771863,1752756648263,-1936.82,0.00019232,2]
[372771864,1752756648273,-1475.64,0.00019232,2]
[372771865,1752756648284,-2723.35,0.00019233,2]
[372771866,1752756648294,-601.1,0.00019233,2]
[372771867,1752756648303,-2196.48,0.00019233,2]
[372771868,1752756648313,-460.0,0.00019233,2]
[372771869,1752756648323,-1173.51,0.00019233,2]
[372771870,1752756648333,-569.19,0.00019233,2]
[372771871,1752756648343,-460.0,0.00019233,2]
[372771872,1752756648353,-743.42,0.00019233,2]
[372771873,1752756648365,-460.0,0.00019235,2]
[372771874,1752756648375,-593.85,0.00019235,2]
[372771875,1752756648384,-492.99,0.00019235,2]
[372771876,1752756648394,-843.5,0.00019235,2]
[372771877,1752756648403,-491.34,0.00019235,2]
[372771878,1752756648413,-460.0,0.00019235,2]
[372771879,1752756648423,-478.85,0.00019235,2]
[372771880,1752756648432,-460.0,0.00019235,2]
[372771881,1752756648442,-675.38,0.00019235,2]
[372771882,1752756648452,-566.82,0.00019235,2]
[372771883,1752756648461,-560.2,0.00019235,2]
[372771884,1752756648471,-460.0,0.00019237,2]
[372771885,1752756648481,-460.0,0.00019237,2]
[372771886,1752756648491,-460.0,0.00019237,2]
[372771887,1752756648500,-551.08,0.00019237,2]
[372771888,1752756648510,-4251.67,0.00019237,2]
[372771889,1752756648520,-1101.8,0.00019237,2]
[372771890,1752756648530,-1227.46,0.00019237,2]
[372771891,1752756648540,-495.64,0.00019237,2]
[372771892,1752756648551,-1151.6,0.00019237,2]
[372771893,1752756648560,-2280.27,0.00019237,2]
[372771894,1752756648571,-198.0,0.0001927,2]
[372771895,1752756648581,-1138.0,0.0001927,2]
[372771896,1752756648590,-962.0,0.0001927,2]
[372771897,1752756648600,-151.0,0.0001927,2]
[372771898,1752756648609,-500.0,0.0001927,2]
[372771899,1752756648622,-260.0,0.00019304,2]
[372771900,1752756648632,-240.74629,0.00019329,2]
[372771901,1752756648641,-240.74629,0.00019329,2]
[372771902,1752756648652,-151.0,0.00019329,2]
[372771903,1752756648665,-589.425571,0.00019329,2]
[372771904,1752756648675,-589.425571,0.00019329,2]
[372771905,1752756648685,-100000.0,0.00019329,2]
[372771906,1752756648695,-460.0,0.00019334,2]
[372771907,1752756648705,-561.94,0.00019334,2]
[372771908,1752756648716,-774.95,0.00019334,2]
[372771909,1752756648726,-655.24,0.00019334,2]
[372771910,1752756648737,-460.0,0.00019334,2]
[372771911,1752756648746,-460.0,0.00019334,2]
[372771912,1752756648756,-460.0,0.00019334,2]
[372771913,1752756648765,-460.0,0.00019334,2]
[372771914,1752756648775,-460.0,0.00019334,2]
[372771915,1752756648785,-460.0,0.00019334,2]
[372771916,1752756648794,-741.73,0.00019334,2]
[372771917,1752756648804,-348.18019,0.00019335,2]
[372771918,1752756648813,-348.18019,0.00019335,2]
[372771919,1752756648822,-5000.0,0.00019346,2]
[372771920,1752756648832,-3004.49213334,0.00019363,2]
[372771921,1752756648841,-2000.0,0.0001937,2]
[372771922,1752756648851,-500.0,0.00019372,2]
[372771923,1752756648864,-500.51885288,0.00019373,2]
[372771924,1752756648873,-9584.24968807,0.00019383,2]
[372771925,1752756648883,-151.0,0.00019435,2]
[372771926,1752756648893,-151.0,0.00019435,2]
[372771927,1752756648903,-176.94284,0.00019435,2]
[372771928,1752756648913,-167.617613,0.00019435,2]
[372771929,1752756648923,-176.94284,0.00019435,2]
[372771930,1752756648933,-167.617613,0.00019435,2]
[372771931,1752756648943,-2525.75,0.0001944,2]
[372771932,1752756648953,-493.33,0.0001944,2]
[372771933,1752756648963,-1621.5,0.0001944,2]
[372771934,1752756648973,-5013.37,0.0001944,2]
[372771935,1752756648982,-1351.68,0.0001944,2]
[372771936,1752756648991,-151.0,0.00019452,2]
[372771937,1752756649001,-247.18468876,0.00019452,2]
[372771938,1752756649011,-3004.49213334,0.00019453,2]
[372771939,1752756649020,-315.42457621,0.00019458,2]
[372771940,1752756649029,-736.1,0.00019505,2]
[372771941,1752756649039,-1634.33,0.00019505,2]
[372771942,1752756649049,-3795.01,0.00019505,2]
[372771943,1752756649059,-1936.82,0.00019506,2]
[372771944,1752756649068,-1475.64,0.00019506,2]
[372771945,1752756649078,-2723.35,0.00019507,2]
[372771946,1752756649088,-601.1,0.00019507,2]
[372771947,1752756649098,-2196.48,0.00019507,2]
[372771948,1752756649107,-460.0,0.00019507,2]
[372771949,1752756649120,-1173.51,0.00019507,2]
[372771950,1752756649130,-569.19,0.00019507,2]
[372771951,1752756649140,-460.0,0.00019507,2]
[372771952,1752756649150,-743.42,0.00019507,2]
[372771953,1752756649160,-460.0,0.00019509,2]
[372771954,1752756649170,-593.85,0.00019509,2]
[372771955,1752756649181,-492.99,0.00019509,2]
[372771956,1752756649224,-843.5,0.00019509,2]
[372771957,1752756649233,-491.34,0.00019509,2]
[372771958,1752756649244,-460.0,0.00019509,2]
[372771959,1752756649253,-478.85,0.00019509,2]
[372771960,1752756649263,-460.0,0.00019509,2]
[372771961,1752756649273,-675.38,0.00019509,2]
[372771962,1752756649283,-566.82,0.00019509,2]
[372771963,1752756649292,-560.2,0.00019509,2]
[372771964,1752756649302,-460.0,0.00019511,2]
[372771965,1752756649311,-460.0,0.00019511,2]
[372771966,1752756649321,-460.0,0.00019511,2]
[372771967,1752756649330,-551.08,0.00019511,2]
[372771968,1752756649339,-4251.67,0.00019511,2]
[372771969,1752756649349,-1101.8,0.00019511,2]
[372771970,1752756649359,-1227.46,0.00019511,2]
[372771971,1752756649372,-495.64,0.00019511,2]
[372771972,1752756649382,-1151.6,0.00019511,2]
[372771973,1752756649392,-2280.27,0.00019511,2]
[372771974,1752756649402,-1138.0,0.00019544,2]
[372771975,1752756649411,-962.0,0.00019544,2]
[372771976,1752756649421,-151.0,0.00019544,2]
[372771977,1752756649431,-500.0,0.00019544,2]
[372771978,1752756649441,-306.0,0.00019558,3]
[372771979,1752756649450,-399.4482582,0.00019568,2]
[372771980,1752756649459,-152.23927658,0.00019575,2]
[372771981,1752756649468,-318.49860863,0.00019575,2]
[372771982,1752756649478,-500.0,0.00019575,2]
[372771983,1752756649488,-501.15315688,0.00019575,2]
[372771984,1752756649498,-500.0,0.00019592,2]
[372771985,1752756649507,-500.0,0.00019592,2]
[372771986,1752756649516,-460.0,0.00019608,2]
[372771987,1752756649525,-561.94,0.00019608,2]
[372771988,1752756649535,-774.95,0.00019608,2]
[372771989,1752756649545,-655.24,0.00019608,2]
[372771990,1752756649555,-460.0,0.00019608,2]
[372771991,1752756649564,-460.0,0.00019608,2]
[372771992,1752756649574,-460.0,0.00019608,2]
[372771993,1752756649584,-460.0,0.00019608,2]
[372771994,1752756649593,-460.0,0.00019608,2]
[372771995,1752756649603,-741.73,0.00019608,2]
[372771996,1752756649614,-9584.24968807,0.00019624,2]
[372771997,1752756649624,-459.7767,0.00019627,2]
[372771998,1752756649634,-218.03652412,0.00019679,2]
[372771999,1752756649643,-1091.649193,0.00019709,2]
[372772000,1752756649653,-1091.649193,0.00019709,2]
[372772001,1752756649666,-151.35564,0.00019709,2]
[372772002,1752756649675,-2525.75,0.00019714,2]
[372772003,1752756649684,-493.33,0.00019714,2]
[372772004,1752756649694,-1621.5,0.00019714,2]
[372772005,1752756649704,-5013.37,0.00019714,2]
[372772006,1752756649713,-1351.68,0.00019714,2]
[372772007,1752756649723,-223.87291385,0.00019726,2]
[372772008,1752756649733,-736.1,0.00019779,2]
[372772009,1752756649743,-1634.33,0.00019779,2]
[372772010,1752756649753,-3795.01,0.00019779,2]
[372772011,1752756649762,-1936.82,0.0001978,2]
[372772012,1752756649772,-1475.64,0.0001978,2]
[372772013,1752756649782,-2723.35,0.00019781,2]
[372772014,1752756649791,-601.1,0.00019781,2]
[372772015,1752756649801,-2196.48,0.00019781,2]
[372772016,1752756649810,-463.07803411,0.00019781,2]
[372772017,1752756649820,-1173.51,0.00019781,2]
[372772018,1752756649830,-569.19,0.00019781,2]
[372772019,1752756649839,-460.0,0.00019781,2]
[372772020,1752756649849,-743.42,0.00019781,2]
[372772021,1752756649859,-460.0,0.00019783,2]
[372772022,1752756649869,-593.85,0.00019783,2]
[372772023,1752756649879,-492.99,0.00019783,2]
[372772024,1752756649888,-843.5,0.00019783,2]
[372772025,1752756649898,-491.34,0.00019783,2]
[372772026,1752756649908,-460.0,0.00019783,2]
[372772027,1752756649917,-478.85,0.00019783,2]
[372772028,1752756649927,-460.0,0.00019783,2]
[372772029,1752756649937,-675.38,0.00019783,2]
[372772030,1752756649947,-566.82,0.00019783,2]
[372772031,1752756649956,-560.2,0.00019783,2]
[372772032,1752756649966,-460.0,0.00019785,2]
[372772033,1752756649976,-151.0,0.00019785,2]
[372772034,1752756649985,-151.0,0.00019785,2]
[372772035,1752756649995,-151.0,0.00019785,2]
[372772036,1752756650005,-151.0,0.00019785,2]
[372772037,1752756650015,-460.0,0.00019785,2]
[372772038,1752756650024,-460.0,0.00019785,2]
[372772039,1752756650034,-551.08,0.00019785,2]
[372772040,1752756650044,-4251.67,0.00019785,2]
[372772041,1752756650053,-1101.8,0.00019785,2]
[372772042,1752756650062,-1227.46,0.00019785,2]
[372772043,1752756650072,-596.39947,0.00019785,2]
[372772044,1752756650081,-596.39947,0.00019785,2]
[372772045,1752756650091,-495.64,0.00019785,2]
[372772046,1752756650100,-151.0,0.00019785,2]
[372772047,1752756650110,-1151.6,0.00019785,2]
[372772048,1752756650121,-2280.27,0.00019785,2]
[372772049,1752756650131,-1138.0,0.00019818,2]
[372772050,1752756650141,-962.0,0.00019818,2]
[372772051,1752756650152,-159.89327024,0.00019818,2]
[372772052,1752756650162,-500.0,0.00019818,2]
[372772053,1752756650172,-910.4111085,0.00019843,2]
[372772054,1752756650182,-360.0,0.00019852,2]
[372772055,1752756650192,-1000.0,0.00019865,2]
[372772056,1752756650202,-9584.24968807,0.00019866,2]
[372772057,1752756650213,-460.0,0.00019882,2]
[372772058,1752756650223,-561.94,0.00019882,2]
[372772059,1752756650233,-774.95,0.00019882,2]
[372772060,1752756650243,-655.24,0.00019882,2]
[372772061,1752756650253,-460.0,0.00019882,2]
[372772062,1752756650263,-460.0,0.00019882,2]
[372772063,1752756650273,-460.0,0.00019882,2]
[372772064,1752756650283,-460.0,0.00019882,2]
[372772065,1752756650292,-741.73,0.00019882,2]
[372772066,1752756650302,-3004.49213334,0.00019909,2]
[372772067,1752756650313,-2500.0,0.00019917,2]
[372772068,1752756650323,-306.0,0.00019934,3]
[372772069,1752756650333,-2525.75,0.00019988,2]
[372772070,1752756650343,-493.33,0.00019988,2]
[372772071,1752756650354,-1621.5,0.00019988,2]
[372772072,1752756650363,-5013.37,0.00019988,2]
[372772073,1752756650374,-1351.68,0.00019988,2]
[372772074,1752756650383,-211.00153815,0.0002,2]
[372772075,1752756650393,-240.74629,0.0002,2]
[372772076,1752756650402,-240.74629,0.0002,2]
[372772077,1752756650411,-300.0,0.0002,2]
[372772078,1752756650420,-408.35712154,0.0002,3]
[372772079,1752756650429,-3004.49213336,0.00020017,2]
[372772080,1752756650439,-151.0,0.00020028,2]
[372772081,1752756650449,-207.4,0.00020028,2]
[372772082,1752756650458,-151.0,0.00020028,2]
[372772083,1752756650467,-151.0,0.00020028,2]
[372772084,1752756650477,-151.0,0.00020028,2]
[372772085,1752756650486,-151.0,0.00020028,2]
[372772086,1752756650495,-151.0,0.00020028,2]
[372772087,1752756650505,-151.0,0.00020028,2]
[372772088,1752756650514,-151.0,0.00020028,2]
[372772089,1752756650523,-151.0,0.00020028,2]
[372772090,1752756650532,-151.0,0.00020028,2]
[372772091,1752756650541,-151.0,0.00020028,2]
[372772092,1752756650550,-151.0,0.00020028,2]
[372772093,1752756650560,-151.0,0.00020028,2]
[372772094,1752756650569,-3801.642,0.00020028,2]
[372772095,1752756650578,-151.0,0.00020028,2]
[372772096,1752756650585,-151.0,0.00020028,2]
[372772097,1752756650593,-151.0,0.00020028,2]
[372772098,1752756650601,-151.0,0.00020028,2]
[372772099,1752756650609,-151.0,0.00020028,2]
[372772100,1752756650618,-151.0,0.00020028,2]
[372772101,1752756650625,-151.0,0.00020028,2]
[372772102,1752756650633,-151.0,0.00020028,2]
[372772103,1752756650642,-151.0,0.00020028,2]
[372772104,1752756650654,-151.0,0.00020028,2]
[372772105,1752756650662,-151.0,0.00020028,2]
[372772106,1752756650670,-151.0,0.00020028,2]
[372772107,1752756650677,-151.0,0.00020028,2]
[372772108,1752756650686,-151.0,0.00020028,2]
[372772109,1752756650695,-159.14388846,0.00020028,2]
[372772110,1752756650704,-151.0,0.00020028,2]
[372772111,1752756650712,-151.0,0.00020028,2]
[372772112,1752756650719,-151.0,0.00020028,2]
[372772113,1752756650727,-151.0,0.00020028,2]
[372772114,1752756650736,-151.0,0.00020028,2]
[372772115,1752756650744,-25000.0,0.00020028,2]
[372772116,1752756650751,-151.0,0.00020028,2]
[372772117,1752756650760,-151.0,0.00020028,2]
[372772118,1752756650771,-1128.6027529,0.00020028,2]
[372772119,1752756650780,-736.1,0.00020053,2]
[372772120,1752756650790,-1634.33,0.00020053,2]
[372772121,1752756650800,-3795.01,0.00020053,2]
[372772122,1752756650810,-1936.82,0.00020054,2]
[372772123,1752756650820,-1475.64,0.00020054,2]
[372772124,1752756650830,-2723.35,0.00020055,2]
[372772125,1752756650840,-601.1,0.00020055,2]
[372772126,1752756650849,-2196.48,0.00020055,2]
[372772127,1752756650861,-1173.51,0.00020055,2]
[372772128,1752756650874,-569.19,0.00020055,2]
[372772129,1752756650884,-365.56311164,0.00020055,2]
[372772130,1752756650894,-743.42,0.00020055,2]
[372772131,1752756650904,-460.0,0.00020057,2]
[372772132,1752756650914,-593.85,0.00020057,2]
[372772133,1752756650924,-492.99,0.00020057,2]
[372772134,1752756650934,-843.5,0.00020057,2]
[372772135,1752756650944,-491.34,0.00020057,2]
[372772136,1752756650954,-460.0,0.00020057,2]
[372772137,1752756650964,-478.85,0.00020057,2]
[372772138,1752756650974,-460.0,0.00020057,2]
[372772139,1752756650985,-675.38,0.00020057,2]
[372772140,1752756650995,-566.82,0.00020057,2]
[372772141,1752756651004,-560.2,0.00020057,2]
[372772142,1752756651014,-460.0,0.00020059,2]
[372772143,1752756651024,-151.0,0.00020059,2]
[372772144,1752756651034,-460.0,0.00020059,2]
[372772145,1752756651043,-460.0,0.00020059,2]
[372772146,1752756651053,-551.08,0.00020059,2]
[372772147,1752756651063,-4251.67,0.00020059,2]
[372772148,1752756651072,-1101.8,0.00020059,2]
[372772149,1752756651082,-1227.46,0.00020059,2]
[372772150,1752756651092,-495.64,0.00020059,2]
[372772151,1752756651102,-1151.6,0.00020059,2]
[372772152,1752756651112,-2280.27,0.00020059,2]
[372772153,1752756651125,-3942.302754,0.00020083,2]
[372772154,1752756651135,-151.0,0.00020083,2]
[372772155,1752756651145,-504.82347527,0.00020092,2]
[372772156,1752756651287,-633.17652473,0.00020092,2]
[372772157,1752756651300,-962.0,0.00020092,2]
[372772158,1752756651310,-208.77817653,0.00020092,2]
[372772159,1752756651320,-500.0,0.000201,2]
[372772160,1752756651330,-5065.27624712,0.00020107,2]
[372772161,1752756651703,-434.01414917,0.00017037,2]
[372772162,1752756651713,-193.52282431,0.00017037,2]
[372772163,1752756651726,-31.39423642,0.00017037,2]
[372772164,1752756651737,-460.0,0.00017043,2]
[372772165,1752756651747,-460.0,0.00017317,2]
[372772166,1752756651757,-589.425571,0.00020107,2]
[372772167,1752756651767,-589.425571,0.00020107,2]
[372772168,1752756651777,-660.18780269,0.00020138,2]
[372772169,1752756652005,-460.0,0.0001704,2]
[372772170,1752756652015,-460.0,0.00017041,2]
[372772171,1752756652024,-460.0,0.00017043,2]
[372772172,1752756652034,-388.5388737,0.00017142,2]
[372772173,1752756652046,-71.4611263,0.00017142,2]
[372772174,1752756652056,-460.0,0.00017317,2]
[372772175,1752756652066,-460.0,0.00017416,2]
[372772176,1752756652075,-460.0,0.00017591,2]
[372772177,1752756652085,-3141.45419731,0.00020138,2]
[372772178,1752756652095,-1000.0,0.0002014,2]
[372772179,1752756652105,-1000.0,0.0002014,2]
[372772180,1752756652115,-774.95,0.00020156,2]
[372772181,1752756652254,-655.24,0.00020156,2]
[372772182,1752756652265,-460.0,0.00020156,2]
[372772183,1752756652275,-463.69,0.00020156,2]
[372772184,1752756652285,-348.18019,0.00020156,2]
[372772185,1752756652294,-348.18019,0.00020156,2]
[372772186,1752756652304,-460.0,0.00020156,2]
[372772187,1752756652315,-152.97,0.00020156,2]
[372772188,1752756652326,-741.73,0.00020156,2]
[372772189,1752756652335,-151.0,0.00020161,2]
[372772190,1752756652345,-168.550036,0.00020161,2]
[372772191,1752756652354,-168.550036,0.00020161,2]
[372772192,1752756652365,-151.0,0.00020161,2]
[372772193,1752756652377,-737.411296,0.00020161,2]
[372772194,1752756652386,-310.03976995,0.00020161,2]
[372772195,1752756652570,-460.0,0.0001704,2]
[372772196,1752756652580,-291.11,0.00017865,2]
[372772197,1752756652590,-427.37152605,0.00020161,2]
[372772198,1752756652598,-662.478158,0.00020187,2]
[372772199,1752756652608,-151.0,0.00020251,2]
[372772200,1752756652619,-151.0,0.00020256,2]
[372772201,1752756652629,-151.0,0.00020256,2]
[372772202,1752756652639,-176.94284,0.00020256,2]
[372772203,1752756652649,-167.617613,0.00020256,2]
[372772204,1752756652662,-176.94284,0.00020256,2]
[372772205,1752756652672,-167.617613,0.00020256,2]
[372772206,1752756652682,-1186.254,0.0002026,2]
[372772207,1752756652691,-2525.75,0.00020262,2]
[372772208,1752756652701,-493.33,0.00020262,2]
[372772209,1752756652710,-1621.5,0.00020262,2]
[372772210,1752756652720,-2977.86940994,0.00020262,2]
[372772214,1752756742807,7426.7145674,0.00016939,2]
[372772215,1752756742834,25000.0,0.00016939,2]
[372772216,1752756742859,25000.0,0.00016939,2]
[372772217,1752756742884,25000.0,0.00016939,2]
[372772218,1752756742909,25000.0,0.00016939,2]
[372772219,1752756742932,25000.0,0.00016939,2]
[372772220,1752756742957,25000.0,0.00016939,2]
[372772221,1752756742980,25000.0,0.00016939,2]
[372772222,1752756743004,25000.0,0.00016939,2]
[372772223,1752756743027,25000.0,0.00016939,2]
[372772224,1752756743051,25000.0,0.00016939,2]
[372772225,1752756743073,25000.0,0.00016939,2]
[372772226,1752756743097,25000.0,0.00016939,2]
[372772227,1752756808549,3476.3340317,0.00016038,2]
[372772228,1752756812150,3000.0,0.00023,30]
[372772232,1752757015174,627.374643,0.00013699,2]
[372772233,1752757178471,20896.2913253,0.00015962,2]
[372772234,1752757178507,4003.7086747,0.00015962,2]
[372772236,1752757401558,4039.29301538,0.00017943,7]
[372772238,1752757746995,-4804.0,0.00016837,2]
[372772239,1752757747035,-92.0,0.00016899,2]
[372772240,1752757747222,-208.0,0.00016899,2]
[372772241,1752757747260,-193.26179751,0.000169,2]
[372772242,1752757747560,-802.52359502,0.000169,2]
[372772243,1752757747848,-1605.04719004,0.000169,2]
[372772244,1752757748059,-3210.09438008,0.000169,2]
[372772245,1752757748322,-3579.81123984,0.000169,2]
[372772246,1752757748362,-312.46,0.00016929,3]
[372772247,1752757748398,-156.23,0.00016929,3]
[372772248,1752757748435,-468.73,0.00016929,3]
[372772249,1752757748487,-279.89756732,0.00016933,2]
[372772250,1752757748696,-500.0,0.00016933,2]
[372772251,1752757748737,-500.0,0.00016933,2]
[372772252,1752757748776,-500.0,0.00016933,2]
[372772253,1752757748817,-500.0,0.00016933,2]
[372772254,1752757748859,-500.0,0.00016933,2]
[372772255,1752757748904,-500.0,0.00016933,2]
[372772256,1752757748943,-500.0,0.00016933,2]
[372772257,1752757748984,-583.86751632,0.00016933,2]
[372772258,1752757749025,-500.0,0.00016933,2]
[372772259,1752757749307,-332.26496736,0.00016933,2]
[372772260,1752757749396,-167.73503264,0.00016933,2]
[372772261,1752757749432,-500.0,0.00016933,2]
[372772262,1752757749469,-500.0,0.00016933,2]
[372772263,1752757749507,-500.0,0.00016933,2]
[372772264,1752757749543,-594.14251994,0.00016933,2]
[372772265,1752757749581,-272.60535273,0.00016933,2]
[372772266,1752757749620,-500.0,0.00016933,2]
[372772267,1752757749658,-650.0,0.00016933,2]
[372772268,1752757749695,-500.0,0.00016933,2]
[372772269,1752757749730,-460.0,0.00016933,2]
[372772270,1752757749764,-251.03418938,0.00016933,2]
[372772271,1752757750249,-208.96581062,0.00016933,2]
[372772272,1752757750285,-460.0,0.00016933,2]
[372772273,1752757750320,-460.0,0.00016933,2]
[372772274,1752757750899,-460.0,0.00016933,2]
[372772281,1752757760293,-8155.04918154,0.00016934,2]
[372772282,1752757760483,-10000.0,0.00016934,2]
[372772283,1752757760722,-10000.0,0.00016934,2]
[372772284,1752757760956,-10000.0,0.00016934,2]
[372772285,1752757761955,-10000.0,0.00016934,2]
[372772286,1752757762116,-1844.95081846,0.00016934,2]
[372772287,1752757762147,-1200.0,0.00016934,2]
[372772288,1752757762177,-460.0,0.00016935,2]
[372772289,1752757762206,-460.0,0.00016935,2]
[372772290,1752757762235,-460.0,0.00016935,2]
[372772291,1752757762263,-460.0,0.00016935,2]
[372772292,1752757762369,-230.09836308,0.00016935,2]
[372772293,1752757762405,-229.90163692,0.00016935,2]
[372772294,1752757762437,-460.0,0.00016935,2]
[372772295,1752757762468,-460.0,0.00016935,2]
[372772296,1752757762498,-460.0,0.00016935,2]
[372772297,1752757762527,-460.0,0.00016935,2]
[372772298,1752757762557,-1302.54,0.00016935,2]
[372772299,1752757762589,-460.0,0.00016935,2]
[372772300,1752757762618,-460.0,0.00016935,2]
[372772301,1752757762651,-505.74341026,0.00016935,2]
[372772302,1752757762823,-3042.05,0.00016935,2]
[372772303,1752757762854,-460.0,0.00016935,2]
[372772304,1752757762885,-460.0,0.00016935,2]
[372772305,1752757762916,-460.0,0.00016935,2]
[372772306,1752757763043,-2359.1,0.00016935,2]
[372772307,1752757763076,-460.0,0.00016935,2]
[372772308,1752757763115,-554.91,0.00016935,2]
[372772309,1752757763148,-460.0,0.00016935,2]
[372772310,1752757763179,-460.0,0.00016935,2]
[372772311,1752757763211,-460.0,0.00016935,2]
[372772312,1752757763247,-95.58576346,0.00016935,2]
[372772313,1752757763570,-83.94414218,0.00016935,2]
[372772314,1752757763606,-216.8643309,0.00016935,2]
[372772315,1752757763640,-1687.71,0.00016935,2]
[372772316,1752757763671,-460.0,0.00016935,2]
[372772317,1752757763703,-2087.18,0.00016935,2]
[372772318,1752757763732,-460.0,0.00016935,2]
[372772319,1752757763849,-460.0,0.00016935,2]
[372772320,1752757763881,-1130.07,0.00016935,2]
[372772321,1752757763909,-500.0,0.00016936,2]
[372772322,1752757763938,-500.0,0.00016936,2]
[372772323,1752757763967,-500.0,0.00016936,2]
[372772324,1752757764000,-500.0,0.00016936,2]
[372772325,1752757764032,-500.0,0.00016936,2]
[372772326,1752757764062,-460.0,0.00016936,2]
[372772327,1752757764094,-439.86,0.00016936,2]
[372772328,1752757764134,-20.14,0.00016936,2]
[372772329,1752757764155,-460.0,0.00016936,2]
[372772330,1752757764175,-460.0,0.00016936,2]
[372772331,1752757764197,-316.97761444,0.00016936,2]
[372772332,1752757764217,-460.0,0.00016936,2]
[372772333,1752757764239,-188.86749796,0.00016936,2]
[372772334,1752757764260,-460.0,0.00016937,2]
[372772335,1752757764290,-460.0,0.00016938,2]